Cogmind - Beta 15 @@@ ROGUE MODE // 2025.08.23 @ 21:12:47 Player: Naughtyusername Result: Destroyed by S-27 Virus with Autogun Performance ------------- Evolutions (5) 2500 Regions Visited (16) 3200 Robots Destroyed (169) 845 Value Destroyed (5183) 5183 Prototype IDs (51) 1020 Alien Tech Used (1) 200 Bonus (2225) 2225 TOTAL SCORE: 15173 Bonus ------- High Alert Combat Kills 635 Follower Combat Kills 710 Met Data Miner 300 Met Imprinter 300 Was Imprinted 300 Friendly Fire -20 Cogmind --------- Core Integrity 0/1000 Matter 239/300 Energy 68/100 System Corruption 15% Temperature Cool (0) Movement Core (50) Location -5/Factory Parts ------- > --- POWER (3) -------- (None) > --- PROPULSION (6) --- Armored Medium Treads > --- UTILITY (7) ------ Advanced Sensor Array Hacking Suite Hacking Suite Advanced System Shield Advanced System Shield > --- WEAPON (2) ------- (None) > --- INVENTORY (5) ---- Graphene Brace Improved Plasma Cutter Peak State ------------ > --- POWER ------------ Neutrino Core Antimatter Reactor Zionite Heavy DM Reactor > --- PROPULSION ------- Armored Leg Thunder Leg Heavy Armored Exoskeleton > --- UTILITY ---------- Improved Cooling System Large Storage Unit Zionite Biocell Advanced Signal Interpreter Improved Heavy Armor Plating Graphene Brace > --- WEAPON ----------- Bore Cannon Hypervelocity Mass Driver > --- INVENTORY -------- Compact Matter Pod Advanced Sensor Array Advanced Terrain Scanner Improved Weapon Cycler Advanced Cloaking Device Damper Plating Advanced Remote Force Field Advanced System Shield Bore Cannon Bore Cannon Fusion Bomb Launcher Improved Plasma Cutter [Rating: 118] Favorites ----------- Power Micro Nuclear Core Engine Heavy Ion Engine Power Core Micro Nuclear Core Reactor Antimatter Reactor Propulsion Xenon Bombardment Thruster Treads Heavy Treads Leg Improved Titanium Leg Wheel Wheel Hover Unit Makeshift Hover Unit Flight Unit Xenon Bombardment Thruster Utility Medium Storage Unit Device Advanced Sensor Array Storage Medium Storage Unit Processor Advanced Signal Interpreter Hackware Hacking Suite Protection Improved Propulsion Shielding Weapon Chainsword Energy Gun Precision Shock Rifle Energy Cannon Disruptor Cannon Ballistic Gun Gauss Rifle Ballistic Cannon Bore Cannon Launcher Mini Grenade Launcher Impact Weapon Power Maul Slashing Weapon Chainsword Build | -11 -10 -9 -8 -7 -7 -7 -7 -6 -6 -6 -6 -6 -5 -5 -5 -5 ------- Run | Yrd Mat Mat Mat Fac Low Low Zio Pro Fac Low Low Dat Pro Fac Was Fac Slots Evolved 10 | . . 2 2 2 . . . . 2 . . . . 2 . . Power 1 | . . . . 1 . . . . . . . . . . . . Propulsion 4 | . . 1 1 1 . . . . . . . . . 1 . . Utility 5 | . . 1 1 . . . . . 2 . . . . 1 . . Weapon . | . . . . . . . . . . . . . . . . . Parts Attached 156 | 7 . 1 16 43 3 1 3 2 15 . 11 2 1 12 14 25 Power 23 | 2 . . 2 6 . . 1 1 2 . . . . 3 2 4 Engine 7 | 2 . . 1 3 . . . . 1 . . . . . . . Core 11 | . . . 1 3 . . 1 1 . . . . . 2 . 3 Reactor 5 | . . . . . . . . . 1 . . . . 1 2 1 Propulsion 39 | 2 . 1 4 14 1 1 1 . 2 . 4 . . 1 3 5 Treads 6 | . . 1 . 1 . . . . . . 2 . . . 1 1 Leg 11 | 2 . . 4 . . . . . . . . . . . 1 4 Wheel 7 | . . . . 7 . . . . . . . . . . . . Hover 1 | . . . . . . . . . . . 1 . . . . . Flight 14 | . . . . 6 1 1 1 . 2 . 1 . . 1 1 . Utility 62 | 1 . . 6 13 1 . . . 9 . 6 1 1 7 4 13 Device 23 | 1 . . 2 3 1 . . . 2 . 4 . . 3 2 5 Storage 6 | . . . 2 . . . . . . . . . . 2 1 1 Processor 10 | . . . 1 4 . . . . 1 . 2 . . 1 . 1 Hackware 11 | . . . . 3 . . . . 3 . . . 1 . . 4 Protection 12 | . . . 1 3 . . . . 3 . . 1 . 1 1 2 Artifact . | . . . . . . . . . . . . . . . . . Weapon 32 | 2 . . 4 10 1 . 1 1 2 . 1 1 . 1 5 3 Energy Gun 4 | . . . 2 2 . . . . . . . . . . . . Energy Cannon 1 | . . . . . . . . . . . . . . 1 . . Ballistic Gun 6 | 2 . . . 2 . . . . . . . . . . 2 . Ballistic Cannon 9 | . . . . 3 . . . 1 . . . 1 . . 3 1 Launcher 5 | . . . 2 . . . . . 1 . 1 . . . . 1 Special Weapon . | . . . . . . . . . . . . . . . . . Impact Weapon 5 | . . . . 3 . . . . 1 . . . . . . 1 Slashing Weapon 2 | . . . . . 1 . 1 . . . . . . . . . Piercing Weapon . | . . . . . . . . . . . . . . . . . Special Melee Weapon . | . . . . . . . . . . . . . . . . . Unidentified Prototypes 16 | . . . 1 1 . 1 . . 5 . . . . 5 . 3 Parts Lost 48 | . . 1 . 13 1 1 . . 4 . 5 . 10 2 . 11 Power 10 | . . . . 4 . . . . . . . . 2 . . 4 Propulsion 16 | . . 1 . 3 1 1 . . 2 . 5 . 3 . . . Utility 18 | . . . . 3 . . . . 2 . . . 5 2 . 6 Weapon 4 | . . . . 3 . . . . . . . . . . . 1 Highest Loss Streak 7 | . . 1 . 4 1 1 . . 2 . 5 . 7 1 . 5 To Critical Strikes . | . . . . . . . . . . . . . . . . . Average Backups 9 | 2 4 4 8 9 9 9 10 10 9 10 8 10 7 4 9 11 Power . | . 1 1 . . 1 1 1 1 1 1 1 1 . . 1 . Propulsion . | 1 2 1 . . . . 1 1 . 1 . . . . . . Utility 5 | . 1 2 4 5 5 6 6 6 4 6 5 7 5 2 4 6 Weapon 2 | . . . 3 2 2 2 2 2 3 2 1 2 1 1 3 3 Tool/Special . | . . . . . . . . . . . . . . . . . Unused Backups 31 | . . . 3 9 . 1 1 . 6 . 1 . . . 1 9 Power 1 | . . . . . . . . . . . . . . . . 1 Propulsion 5 | . . . 1 4 . . . . . . . . . . . . Utility 14 | . . . . 5 . 1 . . 2 . . . . . 1 5 Weapon 10 | . . . 2 . . . 1 . 4 . 1 . . . . 2 Tool/Special 1 | . . . . . . . . . . . . . . . . 1 Average Slot Usage (%) 79 | . 36 31 90 94 100 89 91 92 85 87 65 75 53 47 74 68 Engine 3 | . . . 7 10 . . . . 4 6 6 6 . . . . Core 4 | . . . 1 3 15 12 14 14 5 6 . . . 3 1 4 Reactor 2 | . . . . . . . . . . . . . 2 1 10 8 Treads 1 | . . 11 . . . . . . . . 4 12 7 . 4 . Leg 9 | . 28 20 35 15 . . . . . . . . . . 3 13 Wheel 1 | . . . . 6 . . . . . . . . . . . . Flight 12 | . . . . 11 38 33 35 35 29 31 6 6 2 7 5 . Device 10 | . 8 . 13 6 7 7 7 7 9 12 17 18 6 16 16 10 Storage 6 | . . . 8 7 7 7 7 7 6 6 6 6 4 . 4 6 Processor 7 | . . . 7 9 7 7 7 7 6 6 11 12 9 10 8 4 Hackware 3 | . . . . 2 7 7 7 7 12 12 . . 1 . . 1 Protection 2 | . . . 1 3 . . . . . . . . 6 3 7 5 Energy Gun 2 | . . . 14 6 . . . . . . . . . . . . Ballistic Cannon 2 | . . . . . . . . 1 . . . . 4 . 6 8 Launcher 2 | . . . . 3 7 7 6 5 3 . 1 . 4 . . . Slashing Weapon 2 | . . . . . 4 7 7 7 5 6 6 6 . 4 2 . Peak Build Rating 118 | 6 3 3 42 49 49 49 51 50 68 65 63 61 59 53 115 118 Average Rating 60 | 3 2 2 36 42 49 46 46 47 57 65 48 55 43 42 93 97 On Entrance 41 | . 3 2 2 42 49 49 47 47 48 63 65 55 57 19 49 107 Naked Turns 10 | . . . . . . . . . . . . . . . . 10 Heaviest Build 124 | 5 1 . 31 44 27 26 27 35 30 27 33 44 47 19 108 124 Greatest Support 129 | 3 3 3 80 80 30 30 28 28 31 29 21 65 56 20 99 129 Greatest Overweight (x) 8 | 1 . . . 1 . 1 . 1 1 . 6 1 . 1 8 . Average Overweight (x) . | . . . . . . . . . . . 1 . . . . . Largest Inventory Capacity 15 | 5 5 5 10 10 10 10 10 10 10 10 10 10 10 5 15 15 Average Capacity 10 | 5 5 5 9 10 10 10 10 10 10 10 10 10 8 5 14 13 Most Carried 15 | 5 5 5 10 10 10 10 10 10 10 10 10 10 10 5 15 15 Average Carried 10 | 3 4 4 8 9 9 9 9 10 9 10 8 9 7 4 11 13 Final Capacity 15 | 5 5 5 10 10 10 10 10 10 10 10 10 10 5 5 15 5 Final Carried 15 | 4 5 5 10 9 9 10 10 10 10 10 10 10 5 5 15 2 Class Distribution -------------------- 37% | Mutant 20% | Sprinter 10% | Hacker-Sprinter 7% | Messiah-Mutant 5% | Scavenger-Mutant 4% | Scout 3% | Assassin 3% | Derelict-Assassin Dominant Class ---------------- Mutant | -10/Materials Mutant | -9/Materials Mutant | -8/Materials Mutant | -7/Factory Sprinter | -7/Lower Caves Sprinter | -7/Lower Caves Sprinter | -7/Zion Sprinter | -6/Proximity Caves Hacker-Sprinter | -6/Factory Hacker-Sprinter | -6/Lower Caves Mutant | -6/Lower Caves Derelict-Assassin | -6/Data Miner Mutant | -5/Proximity Caves Scout | -5/Factory Assassin | -5/Waste Messiah-Mutant | -5/Factory Resources | -11 -10 -9 -8 -7 -7 -7 -7 -6 -6 -6 -6 -6 -5 -5 -5 -5 ----------- Run | Yrd Mat Mat Mat Fac Low Low Zio Pro Fac Low Low Dat Pro Fac Was Fac Matter Collected 5535 | 241 . . 366 1382 35 56 20 202 343 20 310 . 306 160 400 1694 Remotely . | . . . . . . . . . . . . . . . . . Salvage Created 6203 | 92 . . 809 2170 . 253 . . 530 188 114 . 159 220 173 1495 Parts 276 | 4 . . 53 113 . 2 . 1 17 7 13 . 5 4 . 57 Haulers Intercepted 15 | . . . 3 5 . . . . 2 . . . . 2 . 3 Recyclers Shooed 6 | . . . 1 4 . . . . . . . . . . . 1 Parts Field Recycled . | . . . . . . . . . . . . . . . . . Retrieved Matter . | . . . . . . . . . . . . . . . . . Parts Self-Destructed 18 | . . . . . . 3 . 5 . . 5 . 5 . . . Prevented 4 | . . . . . . . . 2 . 2 . . . . . . Kills | -11 -10 -9 -8 -7 -7 -7 -7 -6 -6 -6 -6 -6 -5 -5 -5 -5 ------- Run | Yrd Mat Mat Mat Fac Low Low Zio Pro Fac Low Low Dat Pro Fac Was Fac Combat Hostiles Destroyed 103 | . . . 19 42 . . . 1 4 . 12 . 6 . 1 18 Melee 2 | . . . . . . . . . 2 . . . . . . . Guns 14 | . . . 4 10 . . . . . . . . . . . . Cannons 19 | . . . . 1 . . . . . . . . 4 . 1 13 AOE 66 | . . . 15 29 . . . 1 2 . 12 . 2 . . 5 Classes Destroyed 19 | 2 . . 10 3 . . . 1 . . . . 1 . 1 1 Worker 13 | . . . 1 8 . . . . . . . . . . . 4 Builder 18 | . . . 6 5 . . . . . . . . . . . 7 Tunneler 1 | 1 . . . . . . . . . . . . . . . . Hauler 15 | . . . 3 5 . . . . 2 . . . . 2 . 3 Recycler 11 | 1 . . . 8 . . . . 1 . . . . . . 1 Mechanic 3 | . . . . 1 . . . . . . . . . . . 2 Operator 3 | . . . . 2 . . . . 1 . . . . . . . Drone 3 | . . . . . . . . 1 . . . . 2 . . . Watcher 2 | . . . 1 . . . . . 1 . . . . . . . Swarmer 31 | . . . 5 13 . . . . 2 . 11 . . . . . Grunt 43 | . . . 8 21 . . . . 2 . . . 2 . . 10 Brawler 2 | . . . 1 . . . . . . . . . . . . 1 Duelist 1 | . . . . . . . . . . . . . 1 . . . Protector 3 | . . . 2 1 . . . . . . . . . . . . Sentry 7 | . . . 2 4 . . . . . . . . . . . 1 Hunter 4 | . . . 1 1 . . . . . . 1 . . . . 1 Programmer 7 | . . . . 2 . . . . . . . . 1 . . 4 Heavy 1 | . . . . . . . . . . . . . . . . 1 Compactor 1 | . . . . . . . . . . . . . . . 1 . Best Kill Streak 13 | 2 . . 11 13 . . . 1 2 . 5 . 3 1 1 9 Combat Bots Only 9 | . . . 9 5 . . . 1 2 . 5 . 3 . 1 3 Max Kills in Single Turn 3 | 1 . . 3 3 . . . 1 1 . 2 . 1 1 1 3 Gunslinging . | . . . . . . . . . . . . . . . . . Exploded 3 | . . . 3 3 . . . 1 1 . 2 . 1 . . 2 Melee 1 | . . . . . . . . . 1 . . . . . . . Uniques/NPCs Destroyed . | . . . . . . . . . . . . . . . . . Combat | -11 -10 -9 -8 -7 -7 -7 -7 -6 -6 -6 -6 -6 -5 -5 -5 -5 -------- Run | Yrd Mat Mat Mat Fac Low Low Zio Pro Fac Low Low Dat Pro Fac Was Fac Hostile Shots Fired 957 | . 33 15 49 295 2 19 . . 86 . 57 . 86 8 . 307 Missed 370 | . 12 9 21 121 . 12 . . 47 . 25 . 31 4 . 88 Hits 587 | . 21 6 28 174 2 7 . . 39 . 32 . 55 4 . 219 Melee 16 | . . . . . . . . . . . . . 16 . . . Projectile 571 | . 21 6 28 174 2 7 . . 39 . 32 . 39 4 . 219 Critical Strikes 23 | . . . 1 1 . . . . . . . . 4 . . 17 Actively Blocked 4 | . . . . . . . . . . . . . . . . 4 Part Disruptions 3 | . . . . 1 . . . . . . . . . . . 2 Damage Taken 10002 | . 166 86 418 2411 29 65 . . 482 . 494 . 1408 145 . 4298 Core 2116 | . 52 17 83 396 . 27 . . 85 . 190 . 254 88 . 924 Absorbed by Shields 659 | . . . . . . . . . . . . . . . . 659 Redirected to Shielding 109 | . . . . . . . . . . . . . . 11 . 98 Regen/Repaired (Parts) 2322 | . . . . . . . 188 . 29 . . . . . . 2105 Core Remaining (%) 72 | 100 79 95 84 . . . . 39 . . . . 37 . . . Volleys Fired 364 | 8 . . 31 136 . . . 18 4 . 11 . 32 1 20 103 Largest 2 | 2 . . 2 2 . . . 1 1 . 1 . 1 1 2 2 Hottest 117 | 40 . . 110 117 . . . 48 39 . 43 . 43 81 104 104 Shots Fired 528 | 16 . . 49 173 . . . 18 4 . 10 . 31 1 41 185 Gun 183 | 16 . . 39 109 . . . . . . . . . . 19 . Cannon 262 | . . . . 13 . . . 16 . . . . 28 1 22 182 Launcher 83 | . . . 10 51 . . . 2 4 . 10 . 3 . . 3 Special . | . . . . . . . . . . . . . . . . . Kinetic 340 | 16 . . . 57 . . . 16 . . . . 28 . 41 182 Thermal 5 | . . . . 5 . . . . . . . . . . . . Explosive 83 | . . . 10 51 . . . 2 4 . 10 . 3 . . 3 Electromagnetic 100 | . . . 39 60 . . . . . . . . . 1 . . Robot Hit Streak 13 | 5 . . 12 13 . . . 2 1 . 3 . 7 3 8 6 Robot Miss Streak 9 | 1 . . 3 6 . . . 6 2 . 1 . 2 . 4 9 Penetration Max 2 | . . . . 1 . . . . . . . . . . . 2 Secondary Targets 1 | . . . . 1 . . . . . . . . . . . . Max Gunslinging Chain 1 | . . . . 1 . . . . . . . . . . . . Shots Hit Robots 336 | 10 . . 31 121 . 8 . 2 20 10 6 . 19 6 28 75 Core Hits 292 | 4 . . 59 132 . 3 . 1 9 7 12 . 9 3 2 51 Critical Kills 25 | . . . . . . . . . . . . . . . 1 24 Critical Parts Destroyed 36 | . . . . 3 . . . . . . . . . . 2 31 Critical Strikes 72 | . . . . 3 . . . . . . . . 1 1 12 55 Destroy 68 | . . . . 2 . . . . . . . . . . 12 54 Blast 1 | . . . . . . . . . . . . . 1 . . . Smash 2 | . . . . 1 . . . . . . . . . . . 1 Sever 1 | . . . . . . . . . . . . . . 1 . . Melee Attacks 197 | . . . . 47 1 34 1 2 72 12 . . . 24 . 4 Impact 52 | . . . . 47 1 . . . . . . . . . . 4 Slashing 145 | . . . . . . 34 1 2 72 12 . . . 24 . . Piercing . | . . . . . . . . . . . . . . . . . Sneak Attacks 13 | . . . . 3 . . . . 8 . . . . 2 . . Combat Hostiles 1 | . . . . . . . . . 1 . . . . . . . Follow-up Attacks . | . . . . . . . . . . . . . . . . . Damage Inflicted 18212 | 83 . . 2371 6700 . 605 . 95 1356 736 1304 . 915 272 579 3196 Guns 2788 | 83 . . 594 1854 . . . . . . . . . . 257 . Cannons 3219 | . . . . 210 . . . . . . . . 714 32 322 1941 Explosions 8742 | . . . 1777 4254 . . . 95 226 . 1304 . 201 . . 885 Melee 3241 | . . . . 350 . 605 . . 1130 736 . . . 240 . 180 Ramming 222 | . . . . 32 . . . . . . . . . . . 190 Kinetic 4299 | 83 . . . 982 . . . . . . . . 714 . 579 1941 Thermal 833 | . . . 507 326 . . . . . . . . . . . . Explosive 7997 | . . . 1270 4016 . . . 95 226 . 1304 . 201 . . 885 Electromagnetic 1620 | . . . 594 994 . . . . . . . . . 32 . . Impact 530 | . . . . 350 . . . . . . . . . . . 180 Slashing 2711 | . . . . . . 605 . . 1130 736 . . . 240 . . Piercing . | . . . . . . . . . . . . . . . . . Highest Corruption 23 | . . 1 . 3 3 3 3 . 1 1 1 1 20 2 2 23 Average Corruption 4 | . . 1 . 2 3 3 3 . 1 1 1 1 9 2 2 8 Corruption Purged 8 | . . . . . . . . . . . . . . . . 8 Corruption Blocked . | . . . . . . . . . . . . . . . . . Effects 123 | . . . . 19 3 2 1 . 1 1 5 . 11 3 12 65 Message Errors 28 | . . . . 4 . 1 . . . . 1 . 5 1 1 15 Matter Fused 23 | . . . . 4 . 1 . . 1 . 1 . 1 . 2 13 Heat Flow Errors 15 | . . . . 2 2 . . . . . . . . . 2 9 Energy Discharges 18 | . . . . 4 . . 1 . . 1 1 . 1 1 4 5 Parts Rejected 1 | . . . . . . . . . . . . . . . . 1 Parts Fused 1 | . . . . . . . . . . . . . . . . 1 Data Loss (minor) 9 | . . . . . 1 . . . . . 1 . 2 . 1 4 Data Loss (major) 5 | . . . . 2 . . . . . . . . . . 1 2 Misfires 4 | . . . . 1 . . . . . . . . . . 1 2 Alerts 4 | . . . . 1 . . . . . . . . . 1 . 2 Misdirections 7 | . . . . . . . . . . . . . 1 . . 6 Weapon Failures 8 | . . . . 1 . . . . . . 1 . 1 . . 5 Overload Shots . | . . . . . . . . . . . . . . . . . Overflow Damage 1478 | . . . 29 521 . 282 . 5 149 190 127 . 27 . . 148 Projectiles . | . . . . . . . . . . . . . . . . . Explosions 487 | . . . 29 235 . . . 5 . . 127 . 27 . . 64 Melee 991 | . . . . 286 . 282 . . 149 190 . . . . . 84 Knockbacks 17 | . . . . 2 . . . . . . . . 2 . . 13 Impact 3 | . . . . 1 . . . . . . . . . . . 2 Kinetic 13 | . . . . 1 . . . . . . . . 2 . . 10 Secondary 1 | . . . . . . . . . . . . . . . . 1 Self-Inflicted Damage 400 | . . . 32 204 . . . . 36 . 25 . . . . 103 Shots 11 | . . . 1 7 . . . . 1 . 1 . . . . 1 Rammed 7 | . . . . 6 . . . . . . . . . . . 1 Targets Rammed 29 | . . . . 8 . . . . . . . . . . . 21 Kicked 22 | . . . . 2 . . . . . . . . . . . 20 Crushed . | . . . . . . . . . . . . . . . . . Highest Temperature 547 | . . . 272 301 250 28 230 257 3 . . . 253 . 422 547 Average Temperature 95 | . . . 64 94 150 11 100 87 2 . . . 93 . 78 108 Received Heat Transfer 1687 | . 12 30 117 636 . 27 . . 99 . 6 . 207 9 . 544 Effects 29 | . . . . 5 4 . 2 1 . . . . . . 3 14 Shutdowns 5 | . . . . . . . . . . . . . . . 2 3 Energy Bleed 8 | . . . . 5 1 . . . . . . . . . . 2 Interference 6 | . . . . . 3 . 2 1 . . . . . . . . Matter Decay 2 | . . . . . . . . . . . . . . . . 2 Short Circuit 2 | . . . . . . . . . . . . . . . 1 1 Damage (minor) 1 | . . . . . . . . . . . . . . . . 1 Damage (major) 4 | . . . . . . . . . . . . . . . . 4 Damage (core) 1 | . . . . . . . . . . . . . . . . 1 Siege Activations 1 | . . . . . . . . . . . . . . . . 1 Total Turns 10 | . . . . . . . . . . . . . . . . 10 Longest Duration 10 | . . . . . . . . . . . . . . . . 10 Martial Activations . | . . . . . . . . . . . . . . . . . Shielding Activations . | . . . . . . . . . . . . . . . . . Robots Disrupted 1 | . . . 1 . . . . . . . . . . . . . Combat Hostiles 1 | . . . 1 . . . . . . . . . . . . . Robots Corrupted 5 | . . . . 5 . . . . . . . . . . . . Combat Hostiles 2 | . . . . 2 . . . . . . . . . . . . Parts Fried 7 | . . . 2 5 . . . . . . . . . . . . Impact Corruptions 13 | . . . . 9 . . . . . . . . . . . 4 Robots Melted . | . . . . . . . . . . . . . . . . . Combat Hostiles . | . . . . . . . . . . . . . . . . . Parts Melted 4 | . . . 1 . . . . . . . . . . . . 3 Heat Transferred 788 | . . . 438 350 . . . . . . . . . . . . Parts Sabotaged . | . . . . . . . . . . . . . . . . . Parts Stolen . | . . . . . . . . . . . . . . . . . Parts Stripped . | . . . . . . . . . . . . . . . . . Power Chain Reactions 4 | . . . 3 1 . . . . . . . . . . . . Alert | -11 -10 -9 -8 -7 -7 -7 -7 -6 -6 -6 -6 -6 -5 -5 -5 -5 ------- Run | Yrd Mat Mat Mat Fac Low Low Zio Pro Fac Low Low Dat Pro Fac Was Fac Maximum Alert Level 4 | . . . 2 4 . . . . 2 . . . . 1 . 2 Low Security (%) 39 | 100 100 100 42 28 . . . . . . . . . 25 100 40 Level 1 23 | . . . 11 18 . . . . 41 . . . . 74 . 25 Level 2 23 | . . . 46 8 . . . . 58 . . . . . . 34 Level 3 4 | . . . . 14 . . . . . . . . . . . . Level 4 8 | . . . . 29 . . . . . . . . . . . . Level 5 . | . . . . . . . . . . . . . . . . . High Security . | . . . . . . . . . . . . . . . . . Max Security . | . . . . . . . . . . . . . . . . . Peak Influence 1345 | 5 30 50 580 1345 . . . . 475 . . . . 375 78 693 Initial 468 | . . 12 12 247 . . . . 468 . . . . 325 78 . Average 367 | . 4 21 285 649 . . . . 400 . . . . 255 7 284 Influence Increases 6431 | 10 40 50 717 1863 . 85 . 78 1126 . 295 . 235 524 4 1404 Destroy 0b10 Robot/C 2280 | . . . 340 820 . . . 40 200 . 240 . 80 . . 560 Destroy 0b10 Robot/NC 385 | 10 . . 65 150 . 10 . 5 25 . . . 10 10 . 100 Destroy Leader 484 | . . . 88 170 . . . 10 36 . 40 . 10 2 . 128 Allied During Kill 77 | . . . . . . . . 8 34 . . . . . . 35 Successful Hack 127 | . 25 5 2 86 . . . . . . . . . . . 9 Disable Machine 510 | . . . 30 255 . . . . 75 . . . . 15 . 135 Anti-Garrison Action 150 | . . . 150 . . . . . . . . . . . . . Destroy Structure 618 | . . . 42 202 . . . . 66 . . . . 32 4 272 Advance Influence 750 | . . . . . . . . . 450 . . . . 300 . . Partial Spotted 165 | . . . . 60 . . . . 60 . . . . 30 . 15 Lose Combat Pursuer 885 | . 15 45 . 120 . 75 . 15 180 . 15 . 135 135 . 150 Influence Decreases 5740 | 10 10 50 203 1065 567 356 504 48 702 239 378 132 195 341 227 713 Entered New Map 1997 | . . 18 18 297 497 148 504 . 12 169 42 132 . 15 145 . Time Decay 2923 | 10 10 22 185 638 60 198 . 48 410 70 286 . 115 206 82 583 Search Patrol Dispatched 150 | . . . . . . . . . 150 . . . . . . . Lost Part 460 | . . 10 . 130 10 10 . . 40 . 50 . 80 20 . 110 Lost Ally 210 | . . . . . . . . . 90 . . . . 100 . 20 Squads Dispatched 62 | . 1 1 4 28 . . . . 12 . . . 1 3 . 12 Investigation 16 | . 1 1 . 8 . . . . 5 . . . . . . 1 Extermination 14 | . . . . 7 . . . . 3 . . . . 1 . 3 Reinforcement 11 | . . . 1 4 . . . . 1 . . . . . . 5 Assault 10 | . . . 2 2 . . . . . . . . 1 2 . 3 Garrison 11 | . . . 1 7 . . . . 3 . . . . . . . Intercept . | . . . . . . . . . . . . . . . . . Searches Triggered 1 | . . . . . . . . . 1 . . . . . . . Data Miner Redirects 2 | . . . . . . . . . . . . . . 1 . 1 Construction Impeded 4 | . . . 1 1 . . . . . . . . . . . 2 Haulers Reinforced 4 | . . . . 1 . . . . 1 . . . . . . 2 Active Scanning Responses . | . . . . . . . . . . . . . . . . . Cargo Convoy Interrupts 1 | . . . . 1 . . . . . . . . . . . . Stealth | -11 -10 -9 -8 -7 -7 -7 -7 -6 -6 -6 -6 -6 -5 -5 -5 -5 --------- Run | Yrd Mat Mat Mat Fac Low Low Zio Pro Fac Low Low Dat Pro Fac Was Fac Distress Signals 10 | . 1 . 1 3 . . . 1 . . . . . . . 4 Communications Jammed 6 | . . . . . . . . . . . . . . . . 6 Distress Signals 2 | . . . . . . . . . . . . . . . . 2 Times Spotted 255 | . 8 5 34 74 1 4 . 3 29 . 12 . 20 13 1 51 Peak Tracking Total 11 | . 9 6 11 6 1 3 . 2 6 . 5 . 9 6 1 8 Tactical Retreats 32 | . 1 1 . 7 . 2 . 1 6 . 1 . 5 2 . 6 Traps | -11 -10 -9 -8 -7 -7 -7 -7 -6 -6 -6 -6 -6 -5 -5 -5 -5 ------- Run | Yrd Mat Mat Mat Fac Low Low Zio Pro Fac Low Low Dat Pro Fac Was Fac Traps Triggered 7 | . 1 . . 1 . . . . . . . . . 4 . 1 Indirectly . | . . . . . . . . . . . . . . . . . Trap Hack Attempts . | . . . . . . . . . . . . . . . . . Triggered . | . . . . . . . . . . . . . . . . . Disarmed . | . . . . . . . . . . . . . . . . . Reprogrammed . | . . . . . . . . . . . . . . . . . Reused . | . . . . . . . . . . . . . . . . . Traps Extracted . | . . . . . . . . . . . . . . . . . Installed . | . . . . . . . . . . . . . . . . . Triggered . | . . . . . . . . . . . . . . . . . Machines | -11 -10 -9 -8 -7 -7 -7 -7 -6 -6 -6 -6 -6 -5 -5 -5 -5 ---------- Run | Yrd Mat Mat Mat Fac Low Low Zio Pro Fac Low Low Dat Pro Fac Was Fac Machines Disabled 36 | . . . 3 17 . . . . 5 1 . . . 1 . 9 Max in Single Turn 7 | . . . 2 7 . . . . 1 1 . . . 1 . 1 Garrison Access 5 | . . . 1 1 . . . . 1 . . . . 1 . 1 Machines Repaired . | . . . . . . . . . . . . . . . . . Machines Dismantled . | . . . . . . . . . . . . . . . . . Machines Sabotaged . | . . . . . . . . . . . . . . . . . Overloaded Fab Kills . | . . . . . . . . . . . . . . . . . Hacking | -11 -10 -9 -8 -7 -7 -7 -7 -6 -6 -6 -6 -6 -5 -5 -5 -5 --------- Run | Yrd Mat Mat Mat Fac Low Low Zio Pro Fac Low Low Dat Pro Fac Was Fac Machines Accessed 62 | . 3 4 3 22 . . 1 . 13 . 1 4 . 3 . 8 Terminals 18 | . 3 3 2 10 . . . . . . . . . . . . Fabricators 12 | . . . . 6 . . . . 3 . . . . 1 . 2 Repair Stations 6 | . . . . 1 . . . . 2 . . . . . . 3 Recycling Units 8 | . . . . 1 . . . . 3 . . . . 2 . 2 Scanalyzers 6 | . . 1 1 2 . . . . 2 . . . . . . . Garrison Access 6 | . . . . 2 . . . . 3 . . . . . . 1 Total Hacks 197 | . 11 15 10 68 . . 5 . 32 . 1 26 . 7 . 22 Successful 100 | . 4 6 4 29 . . 5 . 13 . 1 26 . 1 . 11 Failed 97 | . 7 9 6 39 . . . . 19 . . . . 6 . 11 Catastrophic 20 | . . 3 2 7 . . . . 2 . . . . 3 . 3 Database Lockouts . | . . . . . . . . . . . . . . . . . Manual 127 | . 1 2 3 17 . . . . 67 . . . . 28 . 9 Terminals 60 | . 11 12 4 33 . . . . . . . . . . . . Fabricators 32 | . . . . 19 . . . . 8 . . . . 1 . 4 Repair Stations 20 | . . . . 4 . . . . 5 . . . . . . 11 Recycling Units 18 | . . . . 1 . . . . 6 . . . . 6 . 5 Scanalyzers 23 | . . 3 6 8 . . . . 6 . . . . . . . Garrison Access 12 | . . . . 3 . . . . 7 . . . . . . 2 Terminal Hacks 49 | . 4 3 . 10 . . 5 . . . 1 26 . . . . Record 12 | . . 1 . . . . . . . . . 11 . . . . Part Schematic 18 | . . . . 3 . . 5 . . . . 10 . . . . Robot Schematic 2 | . . . . . . . . . . . . 2 . . . . Prototype ID Bank 8 | . . 2 . 3 . . . . . . . 3 . . . . Open Door 1 | . . . . . . . . . . . 1 . . . . . Level Access Points 1 | . 1 . . . . . . . . . . . . . . . Branch Access Points 2 | . 1 . . 1 . . . . . . . . . . . . Locate Traps 2 | . 1 . . 1 . . . . . . . . . . . . Hauler Manifests 1 | . . . . 1 . . . . . . . . . . . . Registered Components 2 | . 1 . . 1 . . . . . . . . . . . . Fabricator Hacks 10 | . . . . 7 . . . . 1 . . . . . . 2 Network Status 2 | . . . . 1 . . . . . . . . . . . 1 Load Schematic 6 | . . . . 4 . . . . 1 . . . . . . 1 Build 2 | . . . . 2 . . . . . . . . . . . . Repair Station Hacks 13 | . . . . 1 . . . . 4 . . . . . . 8 Scan Component 7 | . . . . 1 . . . . 2 . . . . . . 4 Repair 6 | . . . . . . . . . 2 . . . . . . 4 Recycling Unit Hacks 3 | . . . . . . . . . 2 . . . . 1 . . Retrieve Components 3 | . . . . . . . . . 2 . . . . 1 . . Scanalyzer 15 | . . 2 4 4 . . . . 5 . . . . . . . Insert Component 7 | . . 1 2 2 . . . . 2 . . . . . . . Analyze 8 | . . 1 2 2 . . . . 3 . . . . . . . Garrison Access Hacks 3 | . . . . 1 . . . . 1 . . . . . . 1 Seal Access 3 | . . . . 1 . . . . 1 . . . . . . 1 Unauthorized Hacks 7 | . . 1 . 6 . . . . . . . . . . . . Terminals 6 | . . 1 . 5 . . . . . . . . . . . . Botnet 4 | . . . . 4 . . . . . . . . . . . . Skim 2 | . . 1 . 1 . . . . . . . . . . . . Fabricators 1 | . . . . 1 . . . . . . . . . . . . Prioritize 1 | . . . . 1 . . . . . . . . . . . . Repair Stations . | . . . . . . . . . . . . . . . . . Recycling Units . | . . . . . . . . . . . . . . . . . Scanalyzers . | . . . . . . . . . . . . . . . . . Garrison Access . | . . . . . . . . . . . . . . . . . Data Cores Recovered 1 | . . . . 1 . . . . . . . . . . . . Used . | . . . . . . . . . . . . . . . . . Hacking Detections 51 | . 3 4 3 21 . . . . 10 . . . . 3 . 7 Full Trace Events 16 | . 1 2 . 8 . . . . 4 . . . . . . 1 Feedback Events 2 | . . 1 . . . . . . 1 . . . . . . . Corruption 1 | . . 1 . . . . . . . . . . . . . . Hackware Fried 1 | . . . . . . . . . 1 . . . . . . . Feedback Blocked . | . . . . . . . . . . . . . . . . . Robot Schematics Acquired 11 | . . . . . . . 4 . 5 . . 2 . . . . Robots Built . | . . . . . . . . . . . . . . . . . Authchips . | . . . . . . . . . . . . . . . . . Time . | . . . . . . . . . . . . . . . . . Total Robot Build Rating . | . . . . . . . . . . . . . . . . . Part Schematics Acquired 100 | . . 1 2 5 . . 18 . 52 . . 10 . 12 . . Parts Built 2 | . . . . 2 . . . . . . . . . . . . Authchips . | . . . . . . . . . . . . . . . . . Time 152 | . . . . 152 . . . . . . . . . . . . Total Part Build Rating 10 | . . . . 10 . . . . . . . . . . . . Parts Repaired 6 | . . . . . . . . . 2 . . . . . . 4 Time 477 | . . . . . . . . . 124 . . . . . . 353 Parts Recycled . | . . . . . . . . . . . . . . . . . Recycled Matter . | . . . . . . . . . . . . . . . . . Retrieved Matter . | . . . . . . . . . . . . . . . . . Retrieved Components 4 | . . . . . . . . . 4 . . . . . . . Parts Scanalyzed 7 | . . 1 2 2 . . . . 2 . . . . . . . Part Schematics Acquired 7 | . . 1 2 2 . . . . 2 . . . . . . . Parts Damaged 1 | . . . 1 . . . . . . . . . . . . . Bothacking | -11 -10 -9 -8 -7 -7 -7 -7 -6 -6 -6 -6 -6 -5 -5 -5 -5 ------------ Run | Yrd Mat Mat Mat Fac Low Low Zio Pro Fac Low Low Dat Pro Fac Was Fac Used RIF Installer . | . . . . . . . . . . . . . . . . . Robots Hacked . | . . . . . . . . . . . . . . . . . Non-combat . | . . . . . . . . . . . . . . . . . Combat . | . . . . . . . . . . . . . . . . . Robot Hacks Applied . | . . . . . . . . . . . . . . . . . Relay Couplers Released 3 | . . . 1 . . . . . . . . . . 2 . . Machine Destruction 3 | . . . 1 . . . . . . . . . . 2 . . Fabnet Peak Effective % . | . . . . . . . . . . . . . . . . . Robots Rewired . | . . . . . . . . . . . . . . . . . Allies Hacked . | . . . . . . . . . . . . . . . . . Hacks Repelled . | . . . . . . . . . . . . . . . . . Allies | -11 -10 -9 -8 -7 -7 -7 -7 -6 -6 -6 -6 -6 -5 -5 -5 -5 -------- Run | Yrd Mat Mat Mat Fac Low Low Zio Pro Fac Low Low Dat Pro Fac Was Fac Total Allies 20 | . . . . . . . 7 . 5 . . . . 6 . 2 Largest Group 7 | . . . . . . . 7 7 4 . . . . 6 . 2 Highest-Rated Group 337 | . . . . . . . 229 229 337 . . . . 166 . 170 Highest-Rated Ally 127 | . . . . . . . 40 40 127 . . . . 31 . 85 Zionite Dispatches 8 | . . . . . . . . . 4 . . . . 3 . 1 Heavy 1 | . . . . . . . . . . . . . . . . 1 Light 1 | . . . . . . . . . 1 . . . . . . . Recon 1 | . . . . . . . . . 1 . . . . . . . Fire 1 | . . . . . . . . . . . . . . 1 . . Hero 1 | . . . . . . . . . 1 . . . . . . . Resource Resupply 2 | . . . . . . . . . 1 . . . . 1 . . Infowar Resupply 1 | . . . . . . . . . . . . . . 1 . . Total Orders 3 | . . . . . . . . . 1 . 1 . . 1 . . DROP 2 | . . . . . . . . . 1 . . . . 1 . . EXPLORE 1 | . . . . . . . . . . . 1 . . . . . Ally Attacks 76 | . . . . . . . . 9 41 . . . . 2 . 24 Total Damage 3315 | . . . . . . . . 130 1245 . . . . 27 . 1913 Kills 22 | . . . . . . . . 2 6 . . . . . . 14 Allies Corrupted 1 | . . . . . . . . . 1 . . . . . . . Allies Melted 1 | . . . . . . . . . . . . . . 1 . . Intel | -11 -10 -9 -8 -7 -7 -7 -7 -6 -6 -6 -6 -6 -5 -5 -5 -5 ------- Run | Yrd Mat Mat Mat Fac Low Low Zio Pro Fac Low Low Dat Pro Fac Was Fac Active Infowar (turns) 9059 | 14 35 . 525 2236 127 413 515 259 954 140 585 154 326 425 896 1455 Optics 3696 | . . . 525 1225 . . . . . . 581 154 326 425 460 . Sensors 6429 | . . . . 636 127 413 515 259 954 140 581 150 14 312 896 1432 Terrain 1510 | . . . . . . . . . . . 187 147 189 377 610 . Seismic 49 | 14 35 . . . . . . . . . . . . . . . Machine Analysis 432 | . . . . 432 . . . . . . . . . . . . Jamming 1016 | . . . . . . . . . . . . . . . 430 586 Robot Analysis Total . | . . . . . . . . . . . . . . . . . Derelict Logs Recovered 10 | . . . . . 1 2 . 2 . 2 1 . 2 . . . Drone Launches 2 | . . . . . . . . . . . 2 . . . . . Drone Recoveries 2 | . . . . . . . . . . . 2 . . . . . Zionite Intel Received 17 | . . . . . . . . . 12 . . . . 4 . 1 Branch Access 1 | . . . . . . . . . 1 . . . . . . . Emergency Access 2 | . . . . . . . . . 1 . . . . 1 . . Guard Positions 1 | . . . . . . . . . . . . . . . . 1 Prototype Stockpiles 2 | . . . . . . . . . 1 . . . . 1 . . Component Schematics 3 | . . . . . . . . . 2 . . . . 1 . . Prototype Schematics 2 | . . . . . . . . . 2 . . . . . . . Unaware Schematics 1 | . . . . . . . . . 1 . . . . . . . Trap Installations 1 | . . . . . . . . . 1 . . . . . . . Active Terminals 1 | . . . . . . . . . 1 . . . . . . . Depthwide Sectors/0 1 | . . . . . . . . . 1 . . . . . . . Depthwide Sectors/-1 2 | . . . . . . . . . 1 . . . . 1 . . Exploration | -11 -10 -9 -8 -7 -7 -7 -7 -6 -6 -6 -6 -6 -5 -5 -5 -5 ------------- Run | Yrd Mat Mat Mat Fac Low Low Zio Pro Fac Low Low Dat Pro Fac Was Fac Turns Passed 10066 | 84 70 75 658 2270 127 415 515 259 991 140 620 154 326 425 896 2041 Spaces Moved 12427 | 72 138 145 399 2653 354 473 1088 557 2334 358 392 82 388 774 745 1475 Core 978 | 72 138 145 13 . . . . . . . 187 . . . 1 422 Treads 171 | . . . . . . . . . . . . 2 72 . 97 . Legs 2373 | . . . 386 620 . . . . . . . . . . 314 1053 Wheels 331 | . . . . 331 . . . . . . . . . . . . Hover 186 | . . . . . . . . . . . 106 80 . . . . Flight 8388 | . . . . 1702 354 473 1088 557 2334 358 99 . 316 774 333 . Fastest Speed 22 | 50 50 50 50 28 28 27 27 27 22 27 100 160 35 32 32 50 Average Speed 58 | 65 50 50 127 60 28 28 27 27 27 27 136 179 58 37 106 104 Slowest Speed 450 | 100 50 50 130 130 28 107 27 104 100 27 425 180 160 100 450 140 Overloaded Moves 41 | . . . . . . . . . 41 . . . . . . . Propulsion Burnouts . | . . . . . . . . . . . . . . . . . Robots Hopped 35 | . . . . 5 . 2 . . 15 . . . 2 11 . . Potential Cave-ins 1 | . . . . . . . . 1 . . . . . . . . Cave-ins Triggered 1 | . . . . . . . . . 1 . . . . . . . Exploration Rate (%) 54 | 6 52 25 34 63 56 52 88 65 58 52 69 75 73 32 95 38 Regions Visited 16 Branch Regions 8 Pre-discovered Areas 22 | . . . . . . 1 . 1 15 . . 1 . 4 . . Known Exits Taken 9 | . 1 . . 1 1 1 1 1 1 1 . . 1 . . . Unknown Exits Taken 5 | 1 . 1 1 . . . . . . . 1 1 . . . . Scrap Searched 25 | . . . . . 5 6 3 2 . 2 4 . 3 . . . Spaces Dug 206 | . . . . 74 1 26 . 7 48 1 20 . 12 17 . . Terrain Destroyed 723 | . . . 45 224 1 26 . 30 62 1 148 . 56 17 3 110 Melee 132 | . . . . 37 1 26 . 2 48 1 . . . 17 . . Projectile 70 | . . . . . . . . 10 . . . . 9 . 3 48 AOE 520 | . . . 45 187 . . . 18 14 . 148 . 47 . . 61 Terrain Rammed . | . . . . . . . . . . . . . . . . . Walls Destroyed . | . . . . . . . . . . . . . . . . . Machines Disabled . | . . . . . . . . . . . . . . . . . Actions | -11 -10 -9 -8 -7 -7 -7 -7 -6 -6 -6 -6 -6 -5 -5 -5 -5 --------- Run | Yrd Mat Mat Mat Fac Low Low Zio Pro Fac Low Low Dat Pro Fac Was Fac Total 14351 | 95 138 146 497 3049 379 715 1308 640 2563 382 465 87 453 856 812 1766 Wait 843 | . . . 20 57 19 202 211 58 98 12 28 . 22 20 5 91 Move 12346 | 71 137 144 398 2642 353 468 1087 556 2305 357 391 81 383 754 744 1475 Hop 31 | . . . . 5 . 2 . . 13 . . . 2 9 . . Pick Up 100 | 3 . 1 13 32 1 2 1 . 12 . 3 . 1 4 12 15 Fast Attach 100 | 7 . . 8 20 1 2 1 1 14 . 7 . 1 11 9 18 Attach 65 | . . 1 4 15 1 2 1 . 12 . 9 1 5 5 3 6 Detach 54 | 3 1 . 1 13 . 2 1 . 10 . 10 1 2 4 4 2 Swap 82 | . . . 9 34 1 . 2 4 4 1 2 4 2 . 4 15 Drop 116 | 3 . . 9 40 2 1 3 1 19 . 4 . 3 6 9 16 Fire 364 | 8 . . 31 136 . . . 18 4 . 11 . 32 1 20 103 Melee 197 | . . . . 47 1 34 1 2 72 12 . . . 24 . 4 Ram 1 | . . . . . . . . . . . . . . . . 1 Kick 22 | . . . . 2 . . . . . . . . . . . 20 Crush 6 | . . . . 6 . . . . . . . . . . . . Escape Stasis 18 | . . . . . . . . . . . . . . 18 . . Rewire 6 | . . . 4 . . . . . . . . . . . 2 . Trap . | . . . . . . . . . . . . . . . . . Miscellaneous . | . . . . . . . . . . . . . . . . . Route ------- -11/Scrapyard -10/Materials (discovered 4 exits: *Mat x3 / Min) -9/Materials -8/Materials -7/Factory (discovered 3 exits: Sto / *Low x2) -7/Lower Caves -7/Lower Caves -7/Zion -6/Proximity Caves -6/Factory (discovered 3 exits: *Fac / *Low x2) -6/Lower Caves -6/Lower Caves (discovered 2 exits: *Fac / *Dat) -6/Data Miner -5/Proximity Caves -5/Factory (discovered 5 exits: *Fac x3 / *Upp x2) -5/Waste -5/Factory (discovered 1 exit: *Upp) History --------- Turn | Location | Event 28 | -11/Scrapyard | Discovered new exit (range 15) 85 | -11/Scrapyard | Entered Materials 133 | -10/Materials | Identified exit to Mines 140 | -10/Materials | Identified exit to Materials 155 | -10/Materials | Entered another Materials area 155 | -9/Materials | Evolved 2 slots: Propulsion x1, Utility x1 227 | -9/Materials | Discovered new exit (range 6) 230 | -9/Materials | Entered another Materials area 230 | -8/Materials | Evolved 2 slots: Propulsion x1, Utility x1 308 | -8/Materials | Build established: Mutant 498 | -8/Materials | Garrison activated, responded to threat 620 | -8/Materials | Destroyed 9 combat bots 846 | -8/Materials | Discovered new exit (range 12) 888 | -8/Materials | Entered Factory 888 | -7/Factory | Evolved 2 slots: Power x1, Propulsion x1 1682 | -7/Factory | Identified exit to Storage 1682 | -7/Factory | Identified exit to Lower Caves 1756 | -7/Factory | Garrison activated, responded to threat 2088 | -7/Factory | First assault squad dispatched 2102 | -7/Factory | Lost 3 parts (1p1n1w) 2178 | -7/Factory | Garrison activated, responded to threat 2286 | -7/Factory | Cargo convoy interrupted 2308 | -7/Factory | Lost 4 parts (2p1n1w) 2733 | -7/Factory | Fabricated Biomechanical Wings? 2877 | -7/Factory | Build established: Sprinter 2907 | -7/Factory | Core integrity fell below 50% 3052 | -7/Factory | Fabricated Biomechanical Wings? 3158 | -7/Factory | Entered Lower Caves 3183 | -7/Lower Caves | Learned 4 Factory zone layouts 3283 | -7/Lower Caves | Discovered new exit (range 9) 3284 | -7/Lower Caves | Identified exit to Lower Caves 3285 | -7/Lower Caves | Entered another Lower Caves area 3303 | -7/Lower Caves | Found Alien Artifact 3303 | -7/Lower Caves | Identified Core Expander 3303 | -7/Lower Caves | Installed Core Expander, added new Power slot 3347 | -7/Lower Caves | Learned 8 Factory zone layouts 3424 | -7/Lower Caves | Attracted the attention of an 0b10 checkpoint 3656 | -7/Lower Caves | Learned location of Extension (-5) 3659 | -7/Lower Caves | Discovered new exit (range 12) 3663 | -7/Lower Caves | Identified exit to Zion 3700 | -7/Lower Caves | Entered Zion 3713 | -7/Zion | Discovered new exit (range 13) 3741 | -7/Zion | System corruption cleaned by Quarantine Array 3793 | -7/Zion | Visited the Megawrench Repair Shop 3798 | -7/Zion | Given the Hacking Drone Bay 3807 | -7/Zion | Gained Derelict followers 3917 | -7/Zion | Met Imprinter 3921 | -7/Zion | Imprinted 3923 | -7/Zion | Declared Zion's savior 3968 | -7/Zion | Megawrench repaired 10 parts 4011 | -7/Zion | Identified exit to Proximity Caves 4215 | -7/Zion | Entered Proximity Caves 4215 | -6/Proximity Caves | Accompanied by 7 allies 4216 | -6/Proximity Caves | Identified exit to Factory 4232 | -6/Proximity Caves | Learned location of 1 exit from Factory 4332 | -6/Proximity Caves | Spotter reported a threat 4393 | -6/Proximity Caves | Lost 4 allies 4444 | -6/Proximity Caves | Spotter reported a threat 4471 | -6/Proximity Caves | Spotter reported a threat 4474 | -6/Proximity Caves | Entered Factory 4474 | -6/Factory | Evolved 2 slots: Utility x2 4475 | -6/Factory | Identified exit to Lower Caves 4570 | -6/Factory | Zion hero teleported in (CL-ANK) 4627 | -6/Factory | Retrieved Zion intel report: Active Terminals 4645 | -6/Factory | Hacking Suite fried by hacking feedback 4657 | -6/Factory | Repaired Adv. ECM Suite? 4663 | -6/Factory | Retrieved Zion intel report: Unaware Schematics 4664 | -6/Factory | Zion Light squad teleported in 4697 | -6/Factory | Discovered new exit (range 15) 4701 | -6/Factory | Identified exit to Factory 4709 | -6/Factory | Retrieved Zion intel report: Depthwide Sectors/-5 4775 | -6/Factory | Found Prototype Protection 4775 | -6/Factory | Identified Zio. Weapon Casing 4800 | -6/Factory | Retrieved Zion intel report: Prototype Schematics 4804 | -6/Factory | Build established: Hacker-Sprinter 4824 | -6/Factory | Search patrols dispatched 4831 | -6/Factory | Garrison activated, responded to threat 5001 | -6/Factory | Retrieved Zion intel report: Prototype Stockpiles 5011 | -6/Factory | Repaired Biomechanical Wings? 5016 | -6/Factory | Retrieved Zion intel report: Trap Installations 5017 | -6/Factory | Zion Recon squad teleported in 5028 | -6/Factory | Zion Resource Resupply teleported in 5088 | -6/Factory | Crushed by falling debris 5110 | -6/Factory | Retrieved Zion intel report: Component Schematics 5146 | -6/Factory | Retrieved Zion intel report: Prototype Schematics 5180 | -6/Factory | Spotted B-75 Beast 5265 | -6/Factory | Retrieved Zion intel report: Emergency Access 5284 | -6/Factory | Retrieved Zion intel report: Branch Access 5294 | -6/Factory | Retrieved Zion intel report: Component Schematics 5309 | -6/Factory | Retrieved Zion intel report: Depthwide Sectors/-6 5465 | -6/Factory | Entered Lower Caves 5476 | -6/Lower Caves | Entered a destroyed Warlord outpost 5478 | -6/Lower Caves | Learned Factory interactive machine intel 5503 | -6/Lower Caves | Learned 8 Factory zone layouts 5506 | -6/Lower Caves | Encountered a Warlord checkpoint 5603 | -6/Lower Caves | Discovered new exit (range 8) 5605 | -6/Lower Caves | Identified exit to Lower Caves 5605 | -6/Lower Caves | Entered another Lower Caves area 5646 | -6/Lower Caves | Lost 5 parts (5n) 5660 | -6/Lower Caves | Discovered exit to Factory (range 32) 5957 | -6/Lower Caves | Attracted the attention of an 0b10 checkpoint 6140 | -6/Lower Caves | Discovered new exit (range 10) 6225 | -6/Lower Caves | Entered Data Miner 6225 | -6/Data Miner | Discovered new exit (range 6) 6249 | -6/Data Miner | Met Data Miner 6301 | -6/Data Miner | Learned location of Section 7 (-2) 6301 | -6/Data Miner | Acquired the access code to Warlord's prototype stash 6324 | -6/Data Miner | Received God Mode back door access code from Data Miner 6340 | -6/Data Miner | Build established: Derelict-Assassin 6379 | -6/Data Miner | Entered Proximity Caves 6381 | -5/Proximity Caves | Spotter reported a threat 6382 | -5/Proximity Caves | Spotter reported a threat 6532 | -5/Proximity Caves | Attracted the attention of an 0b10 outpost 6572 | -5/Proximity Caves | System corruption reached 10% 6624 | -5/Proximity Caves | Lost 7 parts (1p3n3u) 6674 | -5/Proximity Caves | Core integrity fell below 50% 6674 | -5/Proximity Caves | Learned 4 Factory zone layouts 6688 | -5/Proximity Caves | Learned 12 Factory zone layouts 6697 | -5/Proximity Caves | Discovered exit to Factory (range 14) 6705 | -5/Proximity Caves | Entered Factory 6705 | -5/Factory | Evolved 2 slots: Propulsion x1, Utility x1 6706 | -5/Factory | Identified exit to Upper Caves 6707 | -5/Factory | Identified exit to Factory 6708 | -5/Factory | Loaded intel: 55 interactive machine locations 6728 | -5/Factory | Zion Infowar Resupply teleported in 6730 | -5/Factory | Zion Resource Resupply teleported in 6767 | -5/Factory | Zion Fire squad teleported in 6860 | -5/Factory | Lost 3 allies 6896 | -5/Factory | Incoming assault squad redirected 6978 | -5/Factory | Retrieved Zion intel report: Prototype Stockpiles 7023 | -5/Factory | Retrieved Zion intel report: Depthwide Sectors/-4 7053 | -5/Factory | Retrieved Zion intel report: Component Schematics 7084 | -5/Factory | Discovered exit to Factory (range 15) 7091 | -5/Factory | Retrieved Zion intel report: Emergency Access 7117 | -5/Factory | Build established: Scout 7130 | -5/Factory | Manually triggered Chute Trap 7130 | -5/Factory | Sucked down chute 7130 | -5/Factory | Entered Waste 7130 | -5/Waste | The area was eerily silent 7135 | -5/Waste | Found Broken Fusion Bomb Launcher 7206 | -5/Waste | Discovered new exit (range 13) 7471 | -5/Waste | Found Damper Plating 7528 | -5/Waste | Build established: Assassin 7850 | -5/Waste | A Compactor rumbled back to life 7863 | -5/Waste | Spotted C-40 Crusher 7936 | -5/Waste | Destroyed C-40 Crusher 8023 | -5/Waste | Identified exit to Factory 8026 | -5/Waste | Entered Factory 8041 | -5/Factory | Build established: Mutant 8397 | -5/Factory | Retrieved Zion intel report: Guard Positions 8398 | -5/Factory | Zion Heavy squad teleported in 8479 | -5/Factory | Discovered exit to Upper Caves (range 13) 8489 | -5/Factory | Build established: Scavenger-Mutant 8643 | -5/Factory | Lost 3 parts (3u) 8802 | -5/Factory | Repaired Hvy. Armored Exoskeleton 8898 | -5/Factory | Repaired Broken Adv. Remote Force Field? 8949 | -5/Factory | Build established: Messiah-Mutant 9027 | -5/Factory | Repaired Broken Com. HERF Cannon 9296 | -5/Factory | Repaired Broken Fusion Bomb Launcher 9323 | -5/Factory | System corruption reached 10% 9418 | -5/Factory | Lost 5 parts (2p2u1w) 9496 | -5/Factory | Terminal network hard line cut 9526 | -5/Factory | First assault squad dispatched 9694 | -5/Factory | Build established: Mutant 9841 | -5/Factory | Incoming assault squad redirected 9842 | -5/Factory | Core integrity fell below 50% 9846 | -5/Factory | Released all parts (10) 9916 | -5/Factory | Core integrity fell below 20% 10067 | -5/Factory | Destroyed by S-27 Virus with Autogun Last Messages --------------- 09936_ System corrupted: Heat flow error (+218). 09937_ Penetrated by Slug. 09940_ Acquired 3 matter. 09941_ Acquired 115 matter. 09943_ Slug penetrates Wall. 09943_ Acquired 134 matter. 09975_ System corrupted: Heat flow error (+203). 09979_ Slug penetrates Wall. 09980_ Connecting with Recycling Unit... 09984_ Slug penetrates Wall. 09992_ P67KVI,L/2L YG%E9V7HT 4IT#Q 09996_ W-25 Informer sends out distress signal. 10003_ Slammed into T-07 Excavator. 10016_ Acquired Hacking Suite. 10018_ Drone sends a signal. 10018_ H-66 Slayer retrieves Drone. 10022_ System corrupted: Matter fused (-6). 10022_ Penetrated by Slug. 10038_ CZB>VE9MRUBNIK|6DC7 ,V%E5T M 10043_ K-01 Serf cleans the Assembly Bed. Map ----- +----------------------------------------------------+ | ?????????????????????????????????????????????????? | | ?????????????????????????????????????????????????? | | ?????????????????????????????????????????????????? | | ?????????????????????????????????????????????????? | | ?????????????????????????????????????????????????? | | ?????????????????????????????????????????????????? | | ?????????????????????????????????????????????????? | | ?????????????????????????????????????????????????? | | ?????????????????????????????????????????????????? | | ?????????????????????????????????????????????????? | | ???????????????????????????????????##########+#### | | ???????????????????????????????????# | | ???????????????????????????????????# | | ???????????????????????????????????# | | ???????????????????????????????????# | | ???????????????????????????????????# """" """" " | | ???????????????????????????????????# """" """" " | | ????????????????????????????######## """" """" " | | ????????????????????????????# """" """" " | | ????????????????????????????# """" """" " | | ????????????????????????????# """" """" " | | ????????????????????????????# | | ????????????????????????????# ! | | ????????????????????????????# ###+############ | | ?????????????????############s #??????????# | | ?????????? @ s #??????????# | | ?????????? w #??????????# | | ?????????? #??????????# | | ??????????? #??????????# | | ??????????? #??????????# ! | | ???????????? ##########+## ######??????????# | | ?????????????????????????# T???????????????# | | ?????????????????????????# #??????????????# | | ?????????????????????????# ##??????????????# | | ?????????????????????????# #???????????????# | | ?????????????????????????# #???????????????##### | | ?????????????????????????# #???????????????????? | | ?????????????????????????# #???????????????????? | | ?????????????????????????# #???????????????????? | | ?????????????????????????# #?????????????####### | | ?????????????????????????? ??????????????# | | ???????????????????????????????????????????# ### | | ???????????????????????????????????????????# #?? | | ???????????????????????????????????????????# #?? | | ???????????????????????????????????????????# #?? | | ???????????????????????????????????????????# #?? | | ???????????????????????????????????????????# #?? | | ???????????????????????????????????????????# ### | | ???????????????????????????????????????????# + | | ???????????????????????????????????????????# ## | +----------------------------------------------------+ Best States ------------- Heat Dissipation 67 Energy Generation 65 Energy Capacity 1140 Matter Stores 300 Matter Capacity 300 Sight Range 22 Robot Scan Range 16 Terrain Scan Range 20 Terrain Scan Density 210 Jamming Range 14 Additional Mass Support 9 Armor Coverage 1600 Resistance: EM 90 Propulsion Shielding 66 Weapon Cycling 20 Evasion (%) 70 Targeting Accuracy 8 Recoil Reduction 8 Energy Filtering 30 Offensive Hacking 22 Defensive Hacking 28 Item Schematics ----------------- Sml. Storage Unit | -9/Materials | Scanalyzed Prc. Shock Rifle | -8/Materials | Scanalyzed Seismic Detector | -8/Materials | Scanalyzed Hcp. Storage Unit | -7/Factory | Hacked Biomechanical Wings | -7/Factory | Hacked Imp. Sensor Array | -7/Factory | Scanalyzed System Shield | -7/Factory | Scanalyzed Adv. Sensor Array | -7/Factory | Hacked Battle Cannon | -7/Zion | Free Flamer | -7/Zion | Free Barrage Gun | -7/Zion | Free Enh. Flamer | -7/Zion | Free Arc Thrower | -7/Zion | Free Imp. EM Pulse Cannon | -7/Zion | Archive System Guard | -7/Zion | Archive Imp. Shield Generator | -7/Zion | Archive Remote Datajack | -7/Zion | Archive Plasma Rifle | -7/Zion | Archive Lrn. Proton Cannon | -7/Zion | Archive Adv. Heat Sink | -7/Zion | Archive Imp. Medium Armor Plating | -7/Zion | Archive Hvy. Machine Gun | -7/Zion | Archive Imp. Salvage Targeting Computer | -7/Zion | Archive Imp. Target Analyzer | -7/Zion | Archive Imp. Cooling System | -7/Zion | Archive Adv. Drone Bay | -7/Zion | Archive Antimatter Cannon | -6/Factory | Scanalyzed Prc. Assault Rifle | -6/Factory | Z-intel Shock Maul | -6/Factory | Z-intel Cld. Aerolev Unit | -6/Factory | Z-intel Hvy. Deuterium Engine | -6/Factory | Z-intel Gui. EMP Blaster | -6/Factory | Z-intel Force Rifle | -6/Factory | Z-intel Imp. Lightning Gun | -6/Factory | Z-intel Hvy. Particle Gun | -6/Factory | Z-intel Prc. Rocket Launcher | -6/Factory | Z-intel Cld. VTOL Module | -6/Factory | Z-intel Imp. VTOL Module | -6/Factory | Z-intel Core Analyzer | -6/Factory | Z-intel Focal Shield | -6/Factory | Z-intel Recoil Stabilizer | -6/Factory | Z-intel Hpw. Shotgun | -6/Factory | Z-intel Lightning Gun | -6/Factory | Z-intel Jamming Amplifier | -6/Factory | Z-intel Actuator Array | -6/Factory | Z-intel EM Pulse Cannon | -6/Factory | Z-intel Hacking Suite | -6/Factory | Z-intel EM Shield | -6/Factory | Z-intel Thermic Laser | -6/Factory | Z-intel Armor Integrity Analyzer | -6/Factory | Z-intel Cld. Particle Cannon | -6/Factory | Z-intel Mni. Assault Cannon | -6/Factory | Z-intel Scatter Rocket Array | -6/Factory | Z-intel Imp. Cesium-ion Thruster | -6/Factory | Z-intel Imp. Heavy Laser | -6/Factory | Z-intel Exp. Utility Shielding | -6/Factory | Z-intel Cld. Plasma Cannon | -6/Factory | Z-intel Multireflex Exoskeleton | -6/Factory | Z-intel Cold Fusion Reactor | -6/Factory | Z-intel Enh. Nuclear Core | -6/Factory | Z-intel Exp. Targeting Computer | -6/Factory | Z-intel System Restoration Module | -6/Factory | Z-intel Imp. Light Armor Plating | -6/Factory | Z-intel Com. Battery | -6/Factory | Z-intel Imp. Trap Scanner | -6/Factory | Z-intel ECM Suite | -6/Factory | Z-intel Lgt. Fission Core | -6/Factory | Z-intel Imp. Targeting Computer | -6/Factory | Z-intel Cmb. Airjet | -6/Factory | Z-intel Mining Claw | -6/Factory | Z-intel Com. Matter Pod | -6/Factory | Z-intel Med. Storage Unit | -6/Factory | Z-intel Kinecellerator | -6/Factory | Z-intel Hvy. Particle Cannon | -6/Factory | Z-intel Adv. Targeting Computer | -6/Factory | Z-intel Reaction Control System | -6/Factory | Z-intel Hvy. Flak Cannon | -6/Factory | Z-intel Adv. Terrain Scan Processor | -6/Factory | Scanalyzed Combat Drone Bay | -6/Data Miner | Free Lgt. Regenerative Plating | -6/Data Miner | Free Enh. Flexi-carbon Leg | -6/Data Miner | Free Prc. Energy Filter | -6/Data Miner | Free Hvy. Proton Cannon | -6/Data Miner | Free Myomer Leg | -6/Data Miner | Free Adv. Power Amplifier | -6/Data Miner | Free Dispersion Rifle | -6/Data Miner | Free Adv. Transmission Jammer | -6/Data Miner | Free Adv. Recalibrator | -6/Data Miner | Free Tesla Rifle | -5/Factory | Z-intel Coolant Injector | -5/Factory | Z-intel Imp. Utility Shielding | -5/Factory | Z-intel Remote Shield | -5/Factory | Z-intel Mni. Drone Bay | -5/Factory | Z-intel Imp. Gravmag System | -5/Factory | Z-intel Greatsword | -5/Factory | Z-intel Imp. Plasma Cutter | -5/Factory | Z-intel Nuclear Pulse Array | -5/Factory | Z-intel Mic. Nuclear Core | -5/Factory | Z-intel Hvy. Phase Cannon | -5/Factory | Z-intel Machine Analyzer | -5/Factory | Z-intel Robot Schematics ------------------ K-01 Serf | -7/Zion | Archive R-06 Scavenger | -7/Zion | Archive O-24 Administrator | -7/Zion | Archive L-61 Swordsman | -7/Zion | Archive L-41 Fighter | -6/Factory | Z-intel H-66 Slayer | -6/Factory | Z-intel A-15 Conveyor | -6/Factory | Z-intel X-62 Marksman | -6/Factory | Z-intel R-10 Processor | -6/Factory | Z-intel I-36 Angel | -6/Data Miner | Free B-60 Warrior | -6/Data Miner | Free Fabricated ------------ Biomechanical Wings | x1 | -7/Factory Biomechanical Wings | x1 | -7/Factory Repaired ---------- Adv. ECM Suite | 63% | -6/Factory Biomechanical Wings | 10% | -6/Factory Hvy. Armored Exoskeleton | 13% | -5/Factory Adv. Remote Force Field | 20% | -5/Factory | Broken Com. HERF Cannon | 11% | -5/Factory | Broken Fusion Bomb Launcher | 49% | -5/Factory | Broken Alien Tech Used ----------------- Core Expander Achievements -------------- None Challenges ------------ None Game ------ Seed CoolantXenonSlayer Manual? 0 Play Time 02:35:06 Cumulative 142.5 hours Start 2025.08.23 @ 16:37:25 End 2025.08.23 @ 21:12:47 Sessions 1 Manual Loads 0 Difficulty Rogue Special Mode None Game No. 64 Rogue 64 Adventurer 0 Explorer 0 Win Type - Total 3 Types 1/0/2/0/0/0/0/0/0/0 Lore% 75 Gallery% 64 Achievement% 78 Wizard Run 0 Options --------- Layout 2 ASCII 0 Keyboard 1 Movement Vi Keybinds 0 Fullscreen 1 Font 28/SwanstonBold Map View 50x52 Zoom Use 0% Tactical HUD 1 Map Filters NONE Filters NONE Steam 1 RUN: 3fcf5f2a-0627-401f-86d5-a772abcca182